Cogmind - Beta 15 @@@ ROGUE MODE // 2025.09.27 @ 16:15:28 Player: mgobin-777 Result: Destroyed by Y-45 Defender with Beam Rifle Performance ------------- Evolutions (2) 1000 Regions Visited (3) 600 Robots Destroyed (42) 210 Value Destroyed (1144) 1144 Prototype IDs (1) 20 Alien Tech Used (0) 0 Bonus (0) 0 TOTAL SCORE: 2974 Bonus ------- None Cogmind --------- Core Integrity 0/550 Matter 21/300 Energy 99/100 System Corruption 0% Temperature Cool (9) Movement Core (200) Ox3 Location -8/Materials Parts ------- > --- POWER (1) -------- (None) > --- PROPULSION (3) --- (None) > --- UTILITY (4) ------ Medium Storage Unit > --- WEAPON (3) ------- (None) > --- INVENTORY (10) --- High-powered Shotgun Mining Laser Peak State ------------ > --- POWER ------------ Light Nuclear Core > --- PROPULSION ------- Light Treads Light Treads > --- UTILITY ---------- Medium Storage Unit Weapon Shielding Light Armor Plating Light Armor Plating > --- WEAPON ----------- Precision Beam Rifle Heavy Assault Cannon > --- INVENTORY -------- Heavy Laser Heavy Laser Assault Rifle High-powered Shotgun Heavy Assault Cannon Flak Cannon Heavy Missile Launcher Heavy Missile Launcher Mining Laser [Rating: 22] Favorites ----------- Power Ion Engine Engine Ion Engine Power Core Light Nuclear Core Propulsion Light Treads Treads Light Treads Utility Light Armor Plating Storage Medium Storage Unit Processor Advanced Targeting Computer Protection Light Armor Plating Weapon Shotgun Energy Gun Particle Gun Energy Cannon Particle Cannon Ballistic Gun Shotgun Ballistic Cannon Heavy Assault Cannon Launcher Heavy Missile Launcher Special Weapon Mining Laser Build | -11 -10 -10 -8 ------- Run | Yrd Mat Sub Mat Slots Evolved 4 | . . . 4 Power . | . . . . Propulsion 1 | . . . 1 Utility 2 | . . . 2 Weapon 1 | . . . 1 Parts Attached 31 | 6 7 . 18 Power 3 | 1 . . 2 Engine 1 | 1 . . . Core 2 | . . . 2 Reactor . | . . . . Propulsion 3 | 2 . . 1 Treads 3 | 2 . . 1 Leg . | . . . . Wheel . | . . . . Hover . | . . . . Flight . | . . . . Utility 7 | 1 3 . 3 Device . | . . . . Storage 2 | 1 1 . . Processor 1 | . . . 1 Hackware . | . . . . Protection 4 | . 2 . 2 Artifact . | . . . . Weapon 18 | 2 4 . 12 Energy Gun 5 | 1 1 . 3 Energy Cannon 1 | . . . 1 Ballistic Gun 4 | 1 2 . 1 Ballistic Cannon 5 | . . . 5 Launcher 2 | . . . 2 Special Weapon 1 | . 1 . . Impact Weapon . | . . . . Slashing Weapon . | . . . . Piercing Weapon . | . . . . Special Melee Weapon . | . . . . Unidentified Prototypes 1 | . . . 1 Parts Lost 18 | . 1 . 17 Power 3 | . . . 3 Propulsion 3 | . . . 3 Utility 4 | . 1 . 3 Weapon 8 | . . . 8 Highest Loss Streak 15 | . 1 . 15 To Critical Strikes . | . . . . Average Backups 6 | . 5 8 7 Power . | . . 1 . Propulsion . | . . . . Utility . | . . 1 . Weapon 5 | . 3 6 7 Tool/Special . | . . . . Unused Backups 6 | . . . 6 Power 1 | . . . 1 Propulsion . | . . . . Utility . | . . . . Weapon 5 | . . . 5 Tool/Special . | . . . . Average Slot Usage (%) 88 | . 96 100 76 Engine 9 | . 14 14 2 Core 2 | . . . 6 Treads 23 | . 28 28 16 Storage 12 | . 14 14 9 Protection 15 | . 10 14 21 Energy Gun 8 | . 8 14 6 Ballistic Gun 12 | . 17 14 4 Ballistic Cannon 3 | . . . 8 Peak Build Rating 22 | 6 10 10 22 Average Rating 12 | 4 8 10 18 On Entrance 6 | . 6 10 10 Naked Turns . | . . . . Heaviest Build 43 | 14 24 24 43 Greatest Support 40 | 40 40 40 40 Greatest Overweight (x) 7 | . . . 7 Average Overweight (x) . | . . . . Largest Inventory Capacity 10 | 8 10 10 10 Average Capacity 9 | 7 9 10 10 Most Carried 10 | 5 9 8 10 Average Carried 6 | . 5 8 8 Final Capacity 10 | 8 10 10 10 Final Carried 8 | . 8 8 2 Class Distribution -------------------- 63% | Mutant 35% | Tank Dominant Class ---------------- Mutant | -10/Materials Mutant | -10/Subcaves Tank | -8/Materials Resources | -11 -10 -10 -8 ----------- Run | Yrd Mat Sub Mat Matter Collected 897 | 68 488 . 341 Remotely . | . . . . Salvage Created 1264 | . 581 . 683 Parts 79 | . 54 . 25 Haulers Intercepted 4 | . 1 . 3 Recyclers Shooed 5 | . 1 . 4 Parts Field Recycled . | . . . . Retrieved Matter . | . . . . Parts Self-Destructed 6 | . . 6 . Prevented . | . . . . Kills | -11 -10 -10 -8 ------- Run | Yrd Mat Sub Mat Combat Hostiles Destroyed 27 | . 14 . 13 Guns 15 | . 14 . 1 Cannons 9 | . . . 9 AOE 3 | . . . 3 Classes Destroyed 12 | . 7 . 5 Worker 2 | . 2 . . Builder 2 | . 1 . 1 Hauler 4 | . 1 . 3 Recycler 3 | . 1 . 2 Mechanic 1 | . . . 1 Watcher 3 | . 1 . 2 Swarmer 6 | . 6 . . Grunt 15 | . 8 . 7 Sentry 2 | . . . 2 Specialist 2 | . . . 2 Hunter 1 | . . . 1 Heavy 1 | . . . 1 Best Kill Streak 11 | . 4 . 11 Combat Bots Only 7 | . 3 . 7 Max Kills in Single Turn 3 | . 2 . 3 Gunslinging . | . . . . Exploded 1 | . . . 1 Melee . | . . . . Uniques/NPCs Destroyed . | . . . . Combat | -11 -10 -10 -8 -------- Run | Yrd Mat Sub Mat Hostile Shots Fired 292 | . 58 . 234 Missed 88 | . 19 . 69 Hits 204 | . 39 . 165 Projectile 204 | . 39 . 165 Critical Strikes 5 | . . . 5 Damage Taken 3267 | . 588 . 2679 Core 728 | . 172 . 556 Absorbed by Shields . | . . . . Redirected to Shielding 38 | . . . 38 Core Remaining (%) 65 | 100 . 31 . Volleys Fired 110 | 2 54 . 54 Largest 3 | 1 2 . 3 Hottest 137 | 20 100 . 137 Shots Fired 205 | 2 93 . 110 Gun 120 | 2 78 . 40 Cannon 67 | . . . 67 Launcher 3 | . . . 3 Special 15 | . 15 . . Kinetic 128 | 2 62 . 64 Thermal 74 | . 31 . 43 Explosive 3 | . . . 3 Electromagnetic . | . . . . Robot Hit Streak 13 | 1 9 . 13 Robot Miss Streak 7 | . 3 . 7 Penetration Max 1 | . . . 1 Secondary Targets 3 | . 3 . . Max Gunslinging Chain 1 | . 1 . . Shots Hit Robots 123 | 1 55 . 67 Core Hits 79 | 1 33 . 45 Critical Kills . | . . . . Critical Parts Destroyed . | . . . . Critical Strikes 10 | . 1 . 9 Burn 4 | . 1 . 3 Blast 6 | . . . 6 Melee Attacks . | . . . . Impact . | . . . . Slashing . | . . . . Piercing . | . . . . Sneak Attacks . | . . . . Combat Hostiles . | . . . . Follow-up Attacks . | . . . . Damage Inflicted 4000 | 13 835 . 3152 Guns 1344 | 13 833 . 498 Cannons 1960 | . . . 1960 Explosions 676 | . . . 676 Melee . | . . . . Ramming 20 | . 2 . 18 Kinetic 2515 | 13 617 . 1885 Thermal 789 | . 216 . 573 Explosive 676 | . . . 676 Electromagnetic . | . . . . Impact . | . . . . Slashing . | . . . . Piercing . | . . . . Highest Corruption 1 | . 1 1 . Average Corruption 1 | . 1 1 . Corruption Purged . | . . . . Corruption Blocked . | . . . . Effects 3 | . 1 2 . Heat Flow Errors 1 | . . 1 . Energy Discharges 2 | . 1 1 . Overload Shots . | . . . . Overflow Damage 114 | . . . 114 Projectiles 114 | . . . 114 Explosions . | . . . . Melee . | . . . . Knockbacks 16 | . . . 16 Impact . | . . . . Kinetic 13 | . . . 13 Secondary 3 | . . . 3 Self-Inflicted Damage 261 | . 175 . 86 Shots 5 | . 2 . 3 Rammed 5 | . 1 . 4 Targets Rammed 5 | . 1 . 4 Kicked . | . . . . Crushed . | . . . . Highest Temperature 539 | . 258 200 539 Average Temperature 147 | . 91 109 183 Received Heat Transfer 864 | . 153 . 711 Effects 21 | . 1 . 20 Shutdowns 3 | . . . 3 Energy Bleed 6 | . 1 . 5 Interference 5 | . . . 5 Matter Decay 1 | . . . 1 Short Circuit 1 | . . . 1 Damage (minor) 1 | . . . 1 Damage (major) 4 | . . . 4 Siege Activations . | . . . . Martial Activations . | . . . . Shielding Activations . | . . . . Robots Disrupted . | . . . . Combat Hostiles . | . . . . Robots Corrupted . | . . . . Combat Hostiles . | . . . . Parts Fried . | . . . . Impact Corruptions . | . . . . Robots Melted . | . . . . Combat Hostiles . | . . . . Parts Melted 4 | . . . 4 Heat Transferred 1998 | . 592 . 1406 Parts Sabotaged . | . . . . Parts Stolen . | . . . . Parts Stripped . | . . . . Power Chain Reactions . | . . . . Alert | -11 -10 -10 -8 ------- Run | Yrd Mat Sub Mat Maximum Alert Level . | . . . . Low Security (%) 100 | 100 100 . 100 Level 1 . | . . . . Level 2 . | . . . . Level 3 . | . . . . Level 4 . | . . . . Level 5 . | . . . . High Security . | . . . . Max Security . | . . . . Peak Influence 149 | . 149 . 138 Initial . | . . . . Average 40 | . 57 . 20 Influence Increases 887 | . 436 . 451 Destroy 0b10 Robot/C 540 | . 280 . 260 Destroy 0b10 Robot/NC 75 | . 30 . 45 Destroy Leader 144 | . 54 . 90 Disable Machine 30 | . 30 . . Destroy Structure 68 | . 27 . 41 Lose Combat Pursuer 30 | . 15 . 15 Influence Decreases 804 | . 372 64 368 Entered New Map 32 | . . 32 . Time Decay 620 | . 362 32 226 Lost Part 152 | . 10 . 142 Squads Dispatched 10 | . 2 . 8 Investigation 1 | . 1 . . Extermination . | . . . . Reinforcement 6 | . 1 . 5 Assault . | . . . . Garrison 3 | . . . 3 Intercept . | . . . . Searches Triggered . | . . . . Construction Impeded 2 | . . . 2 Haulers Reinforced . | . . . . Active Scanning Responses . | . . . . Cargo Convoy Interrupts . | . . . . Stealth | -11 -10 -10 -8 --------- Run | Yrd Mat Sub Mat Distress Signals 4 | . 2 . 2 Communications Jammed . | . . . . Distress Signals . | . . . . Times Spotted 48 | . 23 . 25 Peak Tracking Total 9 | . 5 . 9 Tactical Retreats 2 | . 1 . 1 Traps | -11 -10 -10 -8 ------- Run | Yrd Mat Sub Mat Traps Triggered 2 | . 2 . . Indirectly . | . . . . Trap Hack Attempts . | . . . . Triggered . | . . . . Disarmed . | . . . . Reprogrammed . | . . . . Reused . | . . . . Traps Extracted . | . . . . Installed . | . . . . Triggered . | . . . . Machines | -11 -10 -10 -8 ---------- Run | Yrd Mat Sub Mat Machines Disabled 2 | . 2 . . Max in Single Turn 2 | . 2 . . Machines Repaired . | . . . . Machines Dismantled . | . . . . Machines Sabotaged . | . . . . Overloaded Fab Kills . | . . . . Hacking | -11 -10 -10 -8 --------- Run | Yrd Mat Sub Mat Machines Accessed . | . . . . Terminals . | . . . . Fabricators . | . . . . Repair Stations . | . . . . Recycling Units . | . . . . Scanalyzers . | . . . . Garrison Access . | . . . . Total Hacks . | . . . . Successful . | . . . . Failed . | . . . . Catastrophic . | . . . . Database Lockouts . | . . . . Manual . | . . . . Terminals . | . . . . Fabricators . | . . . . Repair Stations . | . . . . Recycling Units . | . . . . Scanalyzers . | . . . . Garrison Access . | . . . . Terminal Hacks . | . . . . Fabricator Hacks . | . . . . Repair Station Hacks . | . . . . Recycling Unit Hacks . | . . . . Scanalyzer . | . . . . Garrison Access Hacks . | . . . . Unauthorized Hacks . | . . . . Terminals . | . . . . Fabricators . | . . . . Repair Stations . | . . . . Recycling Units . | . . . . Scanalyzers . | . . . . Garrison Access . | . . . . Data Cores Recovered . | . . . . Used . | . . . . Hacking Detections . | . . . . Full Trace Events . | . . . . Feedback Events . | . . . . Feedback Blocked . | . . . . Robot Schematics Acquired . | . . . . Robots Built . | . . . . Authchips . | . . . . Time . | . . . . Total Robot Build Rating . | . . . . Part Schematics Acquired . | . . . . Parts Built . | . . . . Authchips . | . . . . Time . | . . . . Total Part Build Rating . | . . . . Parts Repaired . | . . . . Time . | . . . . Parts Recycled . | . . . . Recycled Matter . | . . . . Retrieved Matter . | . . . . Retrieved Components . | . . . . Parts Scanalyzed . | . . . . Part Schematics Acquired . | . . . . Parts Damaged . | . . . . Bothacking | -11 -10 -10 -8 ------------ Run | Yrd Mat Sub Mat Used RIF Installer . | . . . . Robots Hacked . | . . . . Non-combat . | . . . . Combat . | . . . . Robot Hacks Applied . | . . . . Relay Couplers Released . | . . . . Fabnet Peak Effective % . | . . . . Robots Rewired . | . . . . Allies Hacked . | . . . . Hacks Repelled . | . . . . Allies | -11 -10 -10 -8 -------- Run | Yrd Mat Sub Mat Total Allies . | . . . . Largest Group . | . . . . Highest-Rated Group . | . . . . Highest-Rated Ally . | . . . . Total Orders . | . . . . Ally Attacks . | . . . . Total Damage . | . . . . Kills . | . . . . Allies Corrupted . | . . . . Allies Melted . | . . . . Intel | -11 -10 -10 -8 ------- Run | Yrd Mat Sub Mat Active Infowar (turns) . | . . . . Robot Analysis Total . | . . . . Derelict Logs Recovered 1 | . . 1 . Drone Launches . | . . . . Drone Recoveries . | . . . . Exploration | -11 -10 -10 -8 ------------- Run | Yrd Mat Sub Mat Turns Passed 2117 | 52 1078 158 829 Spaces Moved 902 | 32 447 96 327 Core 20 | 13 . . 7 Treads 882 | 19 447 96 320 Legs . | . . . . Wheels . | . . . . Hover . | . . . . Flight . | . . . . Fastest Speed 50 | 50 160 160 160 Average Speed 162 | 115 160 160 170 Slowest Speed 400 | 160 160 160 400 Overloaded Moves . | . . . . Propulsion Burnouts . | . . . . Robots Hopped . | . . . . Potential Cave-ins 10 | . 10 . . Cave-ins Triggered . | . . . . Exploration Rate (%) 31 | 3 83 8 31 Regions Visited 3 Branch Regions 1 Pre-discovered Areas 1 | . . 1 . Known Exits Taken . | . . . . Unknown Exits Taken 3 | 1 1 1 . Scrap Searched . | . . . . Spaces Dug 15 | . 15 . . Terrain Destroyed 115 | . 57 . 58 Melee . | . . . . Projectile 31 | . 15 . 16 AOE 84 | . 42 . 42 Terrain Rammed . | . . . . Walls Destroyed . | . . . . Machines Disabled . | . . . . Actions | -11 -10 -10 -8 --------- Run | Yrd Mat Sub Mat Total 1305 | 45 685 101 474 Wait 199 | . 161 6 32 Move 899 | 31 446 95 327 Hop . | . . . . Pick Up 37 | 6 13 . 18 Fast Attach 1 | . . . 1 Attach 23 | 6 2 . 15 Detach 3 | . . . 3 Swap 11 | . 5 . 6 Drop 17 | . 3 . 14 Fire 110 | 2 54 . 54 Melee . | . . . . Ram . | . . . . Kick . | . . . . Crush 5 | . 1 . 4 Escape Stasis . | . . . . Rewire . | . . . . Trap . | . . . . Miscellaneous . | . . . . Route ------- -11/Scrapyard -10/Materials (discovered 5 exits: [*Mat x3] / [*Min] / [*Sub]) -10/Subcaves -8/Materials History --------- Turn | Location | Event 35 | -11/Scrapyard | Discovered new exit (range 12) 53 | -11/Scrapyard | Entered Materials 145 | -10/Materials | Discovered new exit (range 16) 307 | -10/Materials | Build established: Mutant 360 | -10/Materials | Core integrity fell below 50% 371 | -10/Materials | Discovered new exit (range 16) 518 | -10/Materials | Discovered new exit (range 8) 715 | -10/Materials | Discovered new exit (range 7) 1010 | -10/Materials | Discovered new exit (range 5) 1131 | -10/Materials | Entered Subcaves 1132 | -10/Subcaves | Approached by a straggling Scientist 1157 | -10/Subcaves | Discovered new exit (range 6) 1158 | -10/Subcaves | Learned location of Zion (-6) 1158 | -10/Subcaves | Met a Zionite searching for "candidates" 1190 | -10/Subcaves | Learned Materials security intel 1204 | -10/Subcaves | A swath of the cavern ceiling suddenly collapsed 1289 | -10/Subcaves | Entered Materials 1289 | -8/Materials | Evolved 4 slots: Propulsion x1, Utility x2, Weapon x1 1592 | -8/Materials | Build established: Tank 2070 | -8/Materials | Core integrity fell below 50% 2094 | -8/Materials | Core integrity fell below 20% 2101 | -8/Materials | Destroyed 7 combat bots 2118 | -8/Materials | Destroyed by Y-45 Defender with Beam Rifle Last Messages --------------- 02095_ Hvy. Missile Launcher destroyed. 02095_ U-05 Engineer builds a Wall. 02098_ Critical hit (Burn: +37). 02098_ A-02 Transporter destroyed. 02099_ R-06 Scavenger collects Imp. Heat Sink. 02100_ U-05 Engineer lays Concrete. 02102_ R-06 Scavenger collects Aluminum Leg. 02103_ U-05 Engineer lays Concrete. 02105_ U-05 Engineer builds a Wall. 02105_ U-05 Engineer lays Concrete. 02106_ Acquired 9 matter. 02106_ U-05 Engineer lays Concrete. 02107_ U-05 Engineer builds a Wall. 02107_ R-06 Scavenger collects Particle Gun. 02109_ U-05 Engineer lays Concrete. 02111_ R-06 Scavenger collects Imp. Targeting Computer. 02112_ U-05 Engineer lays Concrete. 02115_ Hvy. Assault Cannon destroyed. 02115_ U-05 Engineer builds a Wall. Map ----- +----------------------------------------------------+ | ?????????????????????????????????????????????????? | | ?????????????????????????????????????????????????? | | ?????????????????????????????????????????????????? | | ?????????????????????????????????????????????????? | | ?????????????????????????????????????????????????? | | ?????????????????????????????????????????????????? | | ?????????????????????????????????????????????????? | | ?????????????????????????????????????????????????? | | ?????????????????????????????????????????????????? | | ?????????????????????????????????????????????????? | | ?????????????????????????????????????????????????? | | ?????????????????????????????????????????????????? | | ?????????????????????????????????????????????????? | | ?????????????????????????????????????????????????? | | ???????????????????????????????????????????####### | | ???????????????????????????????????????????# | | ????????????#??????????????????????????????# | | ??????? ??? ?????????????????????????????# | | ???????? ??[ ??????########??????????????# | | ????????? # "" ?????#]]!! ]#??????????????# | | ????????? + "G #####]]!!] #??????????????# | | ??????????# "" # #??????????????# | | ??????#???# *## ## ##?????????????# | | ??????# "##=##### # # # #???????????# | | ??????# %% %YY % ##????????????#####+# | | ??????# r = % Y @! #????????######## | | ???? # % uuY% ########## | | ??????+ ### % ###### | | ????????????# ################# * | | ????????????# # #???###?????????######## ! | | ????????????###+?######??????????????????????## | | ??????????????????????????????????????????????# | | ????????????????????????????????????????????### % | | ????????????????????????????????????????????# # | | ?????????????????????????????????????????????## | | ?????????????????????????????????????????????## | | ?????????????????????????????????????????????## | | ?????????????????????????????????????????????## ! | | ?????????????????????????????????????????????## ! | | ????????????????????????????????????????????# # | | ????????????????????????????????????????????###### | | ?????????????????????????????????????????????????? | | ?????????????????????????????????????????????????? | | ?????????????????????????????????????????????????? | | ?????????????????????????????????????????????????? | | ?????????????????????????????????????????????????? | | ?????????????????????????????????????????????????? | | ?????????????????????????????????????????????????? | | ?????????????????????????????????????????????????? | | ?????????????????????????????????????????????????? | +----------------------------------------------------+ Best States ------------- Heat Dissipation 31 Energy Generation 14 Energy Capacity 250 Matter Stores 300 Matter Capacity 300 Sight Range 16 Terrain Scan Density 10 Armor Coverage 300 Weapon Shielding 33 Evasion (%) 50 Targeting Accuracy 8 Recoil Reduction 2 Item Schematics ----------------- None Robot Schematics ------------------ None Fabricated ------------ Nothing Repaired ---------- Nothing Alien Tech Used ----------------- None Achievements -------------- None Challenges ------------ None Game ------ Seed RestorationCobblerExtractor Manual? 0 Play Time 00:17:59 Cumulative 21.6 hours Start 2025.09.27 @ 15:51:00 End 2025.09.27 @ 16:15:28 Sessions 1 Manual Loads 0 Difficulty Rogue Special Mode None Game No. 68 Rogue 62 Adventurer 6 Explorer 0 Win Type - Total 0 Types 0/0/0/0/0/0/0/0/0/0 Lore% 10 Gallery% 19 Achievement% 19 Wizard Run 0 Options --------- Layout 1 ASCII 0 Keyboard 0 Movement Numpad Keybinds 0 Fullscreen 1 Font 24/Smallcaps Map View 25x20 Zoom Use 9% Tactical HUD 1 Map Filters NONE Filters NONE Steam 1 RUN: 0bdc8221-3f51-49ad-a38b-68acd6fea482